[Event "Late-Titled-Tuesday-Blitz-May-07-2024"]
[Site "Chess.com"]
[Date "2024.05.07"]
[Round "1"]
[White "Adar_07"]
[Black "sudtirolese06"]
[Result "1-0"]
[WhiteElo "2732"]
[BlackElo "2423"]
[TimeControl "180+1"]
[EndTime "14:02:44 PDT"]
[Termination "Adar_07 won by checkmate"]

1. e4 {[%clk 0:02:58]} 1... g6 {[%clk 0:02:50.5]} 2. d4 {[%clk 0:02:57.7]} 2...
Bg7 {[%clk 0:02:50.7]} 3. Nf3 {[%clk 0:02:58.1]} 3... d6 {[%clk 0:02:50.1]} 4.
Bc4 {[%clk 0:02:58.3]} 4... Nf6 {[%clk 0:02:50]} 5. Qe2 {[%clk 0:02:55.6]} 5...
O-O {[%clk 0:02:49.4]} 6. e5 {[%clk 0:02:55.1]} 6... Nfd7 {[%clk 0:02:48]} 7. e6
{[%clk 0:02:52.9]} 7... fxe6 {[%clk 0:02:47.6]} 8. Ng5 {[%clk 0:02:53.3]} 8...
Nb6 {[%clk 0:02:46.9]} 9. Bxe6+ {[%clk 0:02:52.3]} 9... Kh8 {[%clk 0:02:46.2]}
10. h4 {[%clk 0:02:45.3]} 10... Nc6 {[%clk 0:02:45.4]} 11. c3 {[%clk 0:02:42.3]}
11... Rf6 {[%clk 0:02:41.3]} 12. Nf7+ {[%clk 0:02:36.1]} 12... Rxf7 {[%clk
0:02:41.3]} 13. Bxf7 {[%clk 0:02:37]} 13... Qf8 {[%clk 0:02:34.6]} 14. Bb3
{[%clk 0:02:36.3]} 14... e5 {[%clk 0:02:33]} 15. h5 {[%clk 0:02:34.9]} 15...
gxh5 {[%clk 0:02:29.1]} 16. Rxh5 {[%clk 0:02:26.1]} 16... exd4 {[%clk
0:02:28.3]} 17. Qe4 {[%clk 0:01:55]} 17... h6 {[%clk 0:02:22.7]} 18. Bxh6 {[%clk
0:01:54.8]} 18... Bxh6 {[%clk 0:02:18.9]} 19. Rxh6+ {[%clk 0:01:55.7]} 19...
Qxh6 {[%clk 0:02:18.7]} 20. Qe8+ {[%clk 0:01:56.4]} 20... Kg7 {[%clk 0:02:18]}
21. Qf7+ {[%clk 0:01:56.9]} 21... Kh8 {[%clk 0:02:17.7]} 22. Qg8# {[%clk
0:01:57.8]} 1-0

[Event "Late-Titled-Tuesday-Blitz-May-07-2024"]
[Site "Chess.com"]
[Date "2024.05.07"]
[Round "1"]
[White "ContrVersia"]
[Black "Artemiki"]
[Result "1-0"]
[WhiteElo "2879"]
[BlackElo "2515"]
[TimeControl "180+1"]
[EndTime "14:03:24 PDT"]
[Termination "ContrVersia won by resignation"]

1. e4 {[%clk 0:02:55.5]} 1... c5 {[%clk 0:02:58.2]} 2. Nf3 {[%clk 0:02:52.6]}
2... e6 {[%clk 0:02:58.1]} 3. b3 {[%clk 0:02:49.4]} 3... Nf6 {[%clk 0:02:47.1]}
4. e5 {[%clk 0:02:49.1]} 4... Nd5 {[%clk 0:02:47.1]} 5. Bb2 {[%clk 0:02:50]}
5... Nc6 {[%clk 0:02:46.9]} 6. c4 {[%clk 0:02:49.3]} 6... Nc7 {[%clk 0:02:46]}
7. Nc3 {[%clk 0:02:41.4]} 7... g5 {[%clk 0:02:44.7]} 8. Ne4 {[%clk 0:02:33.9]}
8... Be7 {[%clk 0:02:43.8]} 9. h3 {[%clk 0:02:29.3]} 9... h5 {[%clk 0:02:40]}
10. Be2 {[%clk 0:02:20.7]} 10... b6 {[%clk 0:02:34.2]} 11. Nf6+ {[%clk
0:01:52.6]} 11... Kf8 {[%clk 0:02:31.3]} 12. Nxg5 {[%clk 0:01:52.1]} 12... Nxe5
{[%clk 0:02:28.1]} 13. Ngh7+ {[%clk 0:01:51.7]} 13... Kg7 {[%clk 0:02:17.8]} 14.
Bxe5 {[%clk 0:01:40]} 14... d6 {[%clk 0:02:17.7]} 15. Bxh5 {[%clk 0:01:19.9]}
1-0

[Event "Late-Titled-Tuesday-Blitz-May-07-2024"]
[Site "Chess.com"]
[Date "2024.05.07"]
[Round "1"]
[White "BardArtem"]
[Black "duone"]
[Result "1-0"]
[WhiteElo "2766"]
[BlackElo "2443"]
[TimeControl "180+1"]
[EndTime "14:03:28 PDT"]
[Termination "BardArtem won by checkmate"]

1. e4 {[%clk 0:03:00.9]} 1... c5 {[%clk 0:02:56.7]} 2. Nf3 {[%clk 0:03:00.6]}
2... e6 {[%clk 0:02:55.4]} 3. c3 {[%clk 0:02:59.1]} 3... d5 {[%clk 0:02:54]} 4.
exd5 {[%clk 0:03:00]} 4... exd5 {[%clk 0:02:53.8]} 5. d4 {[%clk 0:03:00.5]} 5...
Nf6 {[%clk 0:02:52.2]} 6. Bb5+ {[%clk 0:03:00.2]} 6... Bd7 {[%clk 0:02:49.8]} 7.
Bxd7+ {[%clk 0:02:59.8]} 7... Nbxd7 {[%clk 0:02:49]} 8. O-O {[%clk 0:03:00.7]}
8... Be7 {[%clk 0:02:48.7]} 9. dxc5 {[%clk 0:03:00.6]} 9... Nxc5 {[%clk
0:02:46.3]} 10. Be3 {[%clk 0:03:00.7]} 10... Ne6 {[%clk 0:02:45.3]} 11. Re1
{[%clk 0:02:59.8]} 11... O-O {[%clk 0:02:45.4]} 12. Nd4 {[%clk 0:02:56]} 12...
Ne4 {[%clk 0:02:38.6]} 13. Nd2 {[%clk 0:02:55.3]} 13... N6c5 {[%clk 0:02:29.1]}
14. Nxe4 {[%clk 0:02:45.9]} 14... Nxe4 {[%clk 0:02:28.4]} 15. Qg4 {[%clk
0:02:44]} 15... Qc8 {[%clk 0:02:21.1]} 16. Nf5 {[%clk 0:02:40.5]} 16... Bf6
{[%clk 0:02:21.2]} 17. Bd4 {[%clk 0:02:39.3]} 17... g6 {[%clk 0:02:08.9]} 18.
Bxf6 {[%clk 0:02:33.7]} 18... Qxf5 {[%clk 0:02:09.3]} 19. Qxf5 {[%clk
0:02:33.8]} 19... gxf5 {[%clk 0:02:09.7]} 20. Bd4 {[%clk 0:02:34.6]} 20... Rfe8
{[%clk 0:02:08.3]} 21. f3 {[%clk 0:02:34.6]} 21... Nd6 {[%clk 0:02:08.4]} 22.
Kf2 {[%clk 0:02:31.6]} 22... a6 {[%clk 0:02:07.5]} 23. Rxe8+ {[%clk 0:02:29.7]}
23... Rxe8 {[%clk 0:02:07.3]} 24. Rd1 {[%clk 0:02:30.4]} 24... Nc4 {[%clk
0:02:01]} 25. b3 {[%clk 0:02:29.3]} 25... Na3 {[%clk 0:02:01.5]} 26. Bc5 {[%clk
0:01:55.9]} 26... Nb5 {[%clk 0:01:59.9]} 27. Rxd5 {[%clk 0:01:56.2]} 27... Nxc3
{[%clk 0:01:59]} 28. Rxf5 {[%clk 0:01:56.8]} 28... Re2+ {[%clk 0:01:56.7]} 29.
Kf1 {[%clk 0:01:57.4]} 29... Rxa2 {[%clk 0:01:54.5]} 30. Rg5+ {[%clk 0:01:57.7]}
30... Kh8 {[%clk 0:01:50.1]} 31. Bd4+ {[%clk 0:01:58.6]} 31... f6 {[%clk
0:01:50.1]} 32. Bxf6# {[%clk 0:01:59.5]} 1-0

[Event "Late-Titled-Tuesday-Blitz-May-07-2024"]
[Site "Chess.com"]
[Date "2024.05.07"]
[Round "1"]
[White "Rital44"]
[Black "tgpgoat"]
[Result "1-0"]
[WhiteElo "2720"]
[BlackElo "2412"]
[TimeControl "180+1"]
[EndTime "14:03:29 PDT"]
[Termination "Rital44 won by resignation"]

1. e4 {[%clk 0:03:00.9]} 1... c5 {[%clk 0:02:54.7]} 2. Nf3 {[%clk 0:03:00.5]}
2... e6 {[%clk 0:02:55]} 3. d3 {[%clk 0:02:59.4]} 3... Nc6 {[%clk 0:02:55]} 4.
Qe2 {[%clk 0:02:57.5]} 4... Qc7 {[%clk 0:02:54.5]} 5. g3 {[%clk 0:02:57.3]} 5...
Nf6 {[%clk 0:02:53]} 6. Bg2 {[%clk 0:02:57.2]} 6... d6 {[%clk 0:02:52.6]} 7. O-O
{[%clk 0:02:57]} 7... Be7 {[%clk 0:02:53.1]} 8. b3 {[%clk 0:02:55.8]} 8... O-O
{[%clk 0:02:53.7]} 9. Bb2 {[%clk 0:02:55.7]} 9... e5 {[%clk 0:02:54.3]} 10. Nc3
{[%clk 0:02:54.9]} 10... Bg4 {[%clk 0:02:54.6]} 11. h3 {[%clk 0:02:55]} 11...
Nd4 {[%clk 0:02:53.6]} 12. Qd1 {[%clk 0:02:52.9]} 12... Nxf3+ {[%clk 0:02:53]}
13. Bxf3 {[%clk 0:02:46.3]} 13... Bxh3 {[%clk 0:02:53.1]} 14. Re1 {[%clk
0:02:46.1]} 14... Be6 {[%clk 0:02:52.4]} 15. Kg2 {[%clk 0:02:44.5]} 15... h6
{[%clk 0:02:48.3]} 16. Rh1 {[%clk 0:02:43.5]} 16... Nh7 {[%clk 0:02:48.9]} 17.
Bg4 {[%clk 0:02:41.9]} 17... Qd7 {[%clk 0:02:47.8]} 18. Bxe6 {[%clk 0:02:41.4]}
18... Qxe6 {[%clk 0:02:46.5]} 19. Nd5 {[%clk 0:02:40.7]} 19... Bd8 {[%clk
0:02:46.3]} 20. Ne3 {[%clk 0:02:32.9]} 20... b5 {[%clk 0:02:37.9]} 21. a4 {[%clk
0:02:31.4]} 21... bxa4 {[%clk 0:02:36.1]} 22. Rxa4 {[%clk 0:02:31.2]} 22... Bb6
{[%clk 0:02:34.1]} 23. Bc1 {[%clk 0:02:18.4]} 23... Nf6 {[%clk 0:02:34.1]} 24.
c4 {[%clk 0:02:15.8]} 24... Rab8 {[%clk 0:02:25.6]} 25. Nf5 {[%clk 0:02:09.6]}
25... d5 {[%clk 0:02:22.3]} 26. cxd5 {[%clk 0:01:55.3]} 26... Nxd5 {[%clk
0:02:21.8]} 27. Qg4 {[%clk 0:01:52.4]} 27... Nc3 {[%clk 0:02:04.2]} 1-0

[Event "Late-Titled-Tuesday-Blitz-May-07-2024"]
[Site "Chess.com"]
[Date "2024.05.07"]
[Round "1"]
[White "prime-morty"]
[Black "allvim"]
[Result "1-0"]
[WhiteElo "2712"]
[BlackElo "2406"]
[TimeControl "180+1"]
[EndTime "14:03:31 PDT"]
[Termination "prime-morty won by resignation"]

1. c4 {[%clk 0:03:00.9]} 1... Nf6 {[%clk 0:02:57.3]} 2. Nc3 {[%clk 0:03:00.9]}
2... e6 {[%clk 0:02:52.7]} 3. e4 {[%clk 0:03:00.8]} 3... d5 {[%clk 0:02:53.2]}
4. cxd5 {[%clk 0:03:01.6]} 4... exd5 {[%clk 0:02:53.7]} 5. e5 {[%clk 0:03:02.3]}
5... Nfd7 {[%clk 0:02:49.2]} 6. d4 {[%clk 0:03:01.7]} 6... c6 {[%clk 0:02:47.8]}
7. f4 {[%clk 0:03:01.3]} 7... Be7 {[%clk 0:02:43.2]} 8. Nf3 {[%clk 0:03:01.2]}
8... O-O {[%clk 0:02:43.5]} 9. Bd3 {[%clk 0:03:01.4]} 9... Re8 {[%clk
0:02:32.1]} 10. O-O {[%clk 0:02:57.3]} 10... Nf8 {[%clk 0:02:30.3]} 11. f5
{[%clk 0:02:55.5]} 11... c5 {[%clk 0:02:29]} 12. f6 {[%clk 0:02:36.6]} 12...
gxf6 {[%clk 0:02:27.8]} 13. exf6 {[%clk 0:02:35.6]} 13... Bxf6 {[%clk
0:02:28.7]} 14. dxc5 {[%clk 0:02:25]} 14... Ng6 {[%clk 0:02:27.5]} 15. Bxg6
{[%clk 0:02:16.5]} 15... hxg6 {[%clk 0:02:25.9]} 16. Nxd5 {[%clk 0:02:16.7]}
16... Bg7 {[%clk 0:02:22.5]} 17. Bg5 {[%clk 0:02:02.1]} 17... Qa5 {[%clk
0:01:50.9]} 18. b4 {[%clk 0:01:57.5]} 18... Qa6 {[%clk 0:01:31.8]} 19. Nc7
{[%clk 0:01:50.7]} 1-0

[Event "Late-Titled-Tuesday-Blitz-May-07-2024"]
[Site "Chess.com"]
[Date "2024.05.07"]
[Round "1"]
[White "schondeln"]
[Black "Ditman2007"]
[Result "0-1"]
[WhiteElo "2383"]
[BlackElo "2691"]
[TimeControl "180+1"]
[EndTime "14:03:47 PDT"]
[Termination "Ditman2007 won by resignation"]

1. e4 {[%clk 0:02:58.6]} 1... c5 {[%clk 0:02:57]} 2. Nf3 {[%clk 0:02:58.4]} 2...
d6 {[%clk 0:02:56]} 3. Bc4 {[%clk 0:02:57.6]} 3... Nc6 {[%clk 0:02:52.3]} 4. O-O
{[%clk 0:02:57]} 4... e6 {[%clk 0:02:48.7]} 5. Re1 {[%clk 0:02:56.3]} 5... Nf6
{[%clk 0:02:47.8]} 6. Bf1 {[%clk 0:02:56.6]} 6... Be7 {[%clk 0:02:47.9]} 7. c3
{[%clk 0:02:56.9]} 7... O-O {[%clk 0:02:48.1]} 8. d4 {[%clk 0:02:57.2]} 8...
cxd4 {[%clk 0:02:48.5]} 9. cxd4 {[%clk 0:02:57.8]} 9... d5 {[%clk 0:02:49]} 10.
e5 {[%clk 0:02:57.1]} 10... Ne4 {[%clk 0:02:40.9]} 11. Bd3 {[%clk 0:02:56.8]}
11... f5 {[%clk 0:02:41.4]} 12. exf6 {[%clk 0:02:56.5]} 12... Nxf6 {[%clk
0:02:40.8]} 13. Nc3 {[%clk 0:02:55.7]} 13... a6 {[%clk 0:02:36]} 14. Bf4 {[%clk
0:02:48.8]} 14... Ne4 {[%clk 0:02:28.4]} 15. Bg3 {[%clk 0:02:46.6]} 15... Nxg3
{[%clk 0:02:24.7]} 16. hxg3 {[%clk 0:02:46.6]} 16... Bf6 {[%clk 0:02:25.2]} 17.
Ne5 {[%clk 0:02:43.2]} 17... Bxe5 {[%clk 0:02:16.5]} 18. dxe5 {[%clk 0:02:42.9]}
18... Qg5 {[%clk 0:02:16.6]} 19. Qe2 {[%clk 0:02:33.1]} 19... b5 {[%clk
0:02:16.7]} 20. Rac1 {[%clk 0:02:25.2]} 20... Bb7 {[%clk 0:02:14.9]} 21. a3
{[%clk 0:02:18.9]} 21... Nd4 {[%clk 0:02:10]} 22. Qe3 {[%clk 0:02:16.4]} 22...
Qxe3 {[%clk 0:02:10.3]} 23. Rxe3 {[%clk 0:02:16.4]} 23... Nb3 {[%clk 0:02:10.8]}
24. Ree1 {[%clk 0:02:10.5]} 24... d4 {[%clk 0:02:11.2]} 25. Be4 {[%clk
0:02:04.2]} 25... Bxe4 {[%clk 0:02:09.1]} 26. Nxe4 {[%clk 0:02:05.1]} 26... Nxc1
{[%clk 0:02:04.8]} 27. Rxc1 {[%clk 0:02:06]} 27... Rac8 {[%clk 0:01:49.7]} 28.
Rd1 {[%clk 0:02:04.7]} 28... Rfd8 {[%clk 0:01:49.6]} 29. Nd6 {[%clk 0:02:04]}
29... Rc5 {[%clk 0:01:49.8]} 30. f4 {[%clk 0:02:03.3]} 30... Rd5 {[%clk
0:01:50.1]} 31. Kf2 {[%clk 0:02:02.2]} 31... Rd7 {[%clk 0:01:50.6]} 32. Kf3
{[%clk 0:02:02.4]} 32... Rc7 {[%clk 0:01:50.6]} 33. Ke4 {[%clk 0:02:02.4]} 33...
Rc2 {[%clk 0:01:48.3]} 34. f5 {[%clk 0:02:01.3]} 34... Rcc5 {[%clk 0:01:46]} 35.
fxe6 {[%clk 0:01:57.7]} 35... Rxe5+ {[%clk 0:01:46.2]} 36. Kxd4 {[%clk 0:01:58]}
36... Rcd5+ {[%clk 0:01:46.4]} 37. Kc3 {[%clk 0:01:57.6]} 37... Rxd1 {[%clk
0:01:47.3]} 0-1

[Event "Late-Titled-Tuesday-Blitz-May-07-2024"]
[Site "Chess.com"]
[Date "2024.05.07"]
[Round "1"]
[White "Caterpiller35"]
[Black "CSB7"]
[Result "0-1"]
[WhiteElo "2443"]
[BlackElo "2768"]
[TimeControl "180+1"]
[EndTime "14:03:56 PDT"]
[Termination "CSB7 won by resignation"]

1. d4 {[%clk 0:02:50.7]} 1... Nf6 {[%clk 0:02:59.6]} 2. Bg5 {[%clk 0:02:50.7]}
2... Ne4 {[%clk 0:02:49.7]} 3. Bf4 {[%clk 0:02:50.9]} 3... c5 {[%clk 0:02:49.3]}
4. f3 {[%clk 0:02:51]} 4... Qa5+ {[%clk 0:02:48.9]} 5. c3 {[%clk 0:02:51.2]}
5... Nf6 {[%clk 0:02:49.3]} 6. Nd2 {[%clk 0:02:51.9]} 6... cxd4 {[%clk
0:02:49.6]} 7. Nb3 {[%clk 0:02:52.5]} 7... Qd8 {[%clk 0:02:50]} 8. cxd4 {[%clk
0:02:52.4]} 8... d5 {[%clk 0:02:45.6]} 9. e3 {[%clk 0:02:51.9]} 9... Nc6 {[%clk
0:02:44.2]} 10. Bd3 {[%clk 0:02:52]} 10... g6 {[%clk 0:02:42.6]} 11. g4 {[%clk
0:02:49.9]} 11... Bg7 {[%clk 0:02:41.7]} 12. Rc1 {[%clk 0:02:50.3]} 12... O-O
{[%clk 0:02:39.6]} 13. Ne2 {[%clk 0:02:50.4]} 13... Re8 {[%clk 0:02:23.6]} 14.
Bb5 {[%clk 0:02:40.7]} 14... e5 {[%clk 0:02:02]} 15. Bxc6 {[%clk 0:02:38.1]}
15... bxc6 {[%clk 0:01:52.3]} 16. Bxe5 {[%clk 0:02:37.6]} 16... Bxg4 {[%clk
0:01:35.3]} 17. Bxf6 {[%clk 0:02:17.8]} 17... Qxf6 {[%clk 0:01:24.2]} 18. fxg4
{[%clk 0:02:17.5]} 18... Rxe3 {[%clk 0:01:24.6]} 19. Kd2 {[%clk 0:02:03.8]}
19... Rae8 {[%clk 0:01:15.1]} 20. Ng3 {[%clk 0:01:54.9]} 20... Qf2+ {[%clk
0:01:13.6]} 0-1

[Event "Late-Titled-Tuesday-Blitz-May-07-2024"]
[Site "Chess.com"]
[Date "2024.05.07"]
[Round "1"]
[White "ccccvhhhj"]
[Black "bascheyaro"]
[Result "0-1"]
[WhiteElo "2491"]
[BlackElo "2834"]
[TimeControl "180+1"]
[EndTime "14:04:06 PDT"]
[Termination "bascheyaro won by checkmate"]

1. e4 {[%clk 0:03:00.9]} 1... e6 {[%clk 0:02:57.4]} 2. Nf3 {[%clk 0:03:01]} 2...
d5 {[%clk 0:02:57.8]} 3. e5 {[%clk 0:03:01.8]} 3... c5 {[%clk 0:02:57.9]} 4. b4
{[%clk 0:03:02.5]} 4... Nc6 {[%clk 0:02:56.4]} 5. bxc5 {[%clk 0:03:02.4]} 5...
d4 {[%clk 0:02:56.9]} 6. Bd3 {[%clk 0:03:00.5]} 6... Bxc5 {[%clk 0:02:57.1]} 7.
c3 {[%clk 0:03:01.2]} 7... Nge7 {[%clk 0:02:57.2]} 8. O-O {[%clk 0:03:01.2]}
8... h6 {[%clk 0:02:57.1]} 9. Na3 {[%clk 0:02:52.7]} 9... O-O {[%clk 0:02:50.5]}
10. Nc4 {[%clk 0:02:46.6]} 10... b5 {[%clk 0:02:50.1]} 11. Nd6 {[%clk
0:02:46.6]} 11... Nxe5 {[%clk 0:02:42.9]} 12. Nxe5 {[%clk 0:02:44]} 12... Qxd6
{[%clk 0:02:42.5]} 13. Nf3 {[%clk 0:02:34.1]} 13... a6 {[%clk 0:02:42.1]} 14.
Be4 {[%clk 0:02:30.5]} 14... Ra7 {[%clk 0:02:39.6]} 15. cxd4 {[%clk 0:02:25.1]}
15... Bxd4 {[%clk 0:02:39.8]} 16. Rb1 {[%clk 0:01:49.5]} 16... Bf6 {[%clk
0:02:39.7]} 17. d4 {[%clk 0:01:45.2]} 17... Bb7 {[%clk 0:02:35.6]} 18. Qd3
{[%clk 0:01:39.9]} 18... Bxe4 {[%clk 0:02:34]} 19. Qxe4 {[%clk 0:01:40.3]} 19...
Qd5 {[%clk 0:02:34.6]} 20. Qg4 {[%clk 0:01:35.1]} 20... Qf5 {[%clk 0:02:32.4]}
21. Qg3 {[%clk 0:01:34.7]} 21... Qxb1 {[%clk 0:02:31.5]} 22. Bxh6 {[%clk
0:01:30.4]} 22... Qg6 {[%clk 0:02:31.5]} 23. Bg5 {[%clk 0:01:28.1]} 23... Bxg5
{[%clk 0:02:31.3]} 24. Nxg5 {[%clk 0:01:29]} 24... Nf5 {[%clk 0:02:30.7]} 25.
Qf4 {[%clk 0:01:28.5]} 25... Rd7 {[%clk 0:02:30.1]} 26. Rd1 {[%clk 0:01:25.3]}
26... Rfd8 {[%clk 0:02:29.2]} 27. h4 {[%clk 0:01:24.8]} 27... Rxd4 {[%clk
0:02:22.7]} 28. Rxd4 {[%clk 0:01:24.6]} 28... Nxd4 {[%clk 0:02:23.5]} 29. Qc7
{[%clk 0:01:23.4]} 29... Ne2+ {[%clk 0:02:13.5]} 30. Kf1 {[%clk 0:01:02.6]}
30... Rd1+ {[%clk 0:02:12.6]} 31. Kxe2 {[%clk 0:01:00.7]} 31... Qd3# {[%clk
0:02:13.5]} 0-1

[Event "Late-Titled-Tuesday-Blitz-May-07-2024"]
[Site "Chess.com"]
[Date "2024.05.07"]
[Round "1"]
[White "Akhayan"]
[Black "TanitoluwaAps116"]
[Result "0-1"]
[WhiteElo "2429"]
[BlackElo "2745"]
[TimeControl "180+1"]
[EndTime "14:04:13 PDT"]
[Termination "TanitoluwaAps116 won by resignation"]

1. e4 {[%clk 0:02:59.7]} 1... c5 {[%clk 0:03:00.1]} 2. Nf3 {[%clk 0:02:54.2]}
2... e6 {[%clk 0:03:00.1]} 3. d4 {[%clk 0:02:53.3]} 3... cxd4 {[%clk 0:03:01]}
4. c3 {[%clk 0:02:53.5]} 4... dxc3 {[%clk 0:02:53.1]} 5. Nxc3 {[%clk 0:02:52.8]}
5... Nc6 {[%clk 0:02:53.3]} 6. Bc4 {[%clk 0:02:53]} 6... Bb4 {[%clk 0:02:52.8]}
7. O-O {[%clk 0:02:53.1]} 7... Nge7 {[%clk 0:02:52.1]} 8. Qe2 {[%clk 0:02:51.5]}
8... Ng6 {[%clk 0:02:46.5]} 9. Bg5 {[%clk 0:02:45.4]} 9... f6 {[%clk 0:02:32.1]}
10. Be3 {[%clk 0:02:35.1]} 10... O-O {[%clk 0:02:29.9]} 11. Rac1 {[%clk
0:02:35.4]} 11... a6 {[%clk 0:02:29.5]} 12. Rfd1 {[%clk 0:02:35.7]} 12... Qe7
{[%clk 0:02:25.7]} 13. Nd5 {[%clk 0:02:28.1]} 13... exd5 {[%clk 0:02:22.7]} 14.
exd5 {[%clk 0:02:27.7]} 14... Kh8 {[%clk 0:02:18.5]} 15. dxc6 {[%clk 0:02:26.7]}
15... dxc6 {[%clk 0:02:19.4]} 16. a3 {[%clk 0:02:22.9]} 16... Bd6 {[%clk
0:02:14]} 17. b4 {[%clk 0:02:06.8]} 17... Bg4 {[%clk 0:02:07.3]} 18. h3 {[%clk
0:02:03.6]} 18... Bxf3 {[%clk 0:01:39.1]} 19. Qxf3 {[%clk 0:02:03.1]} 19... Rad8
{[%clk 0:01:38.4]} 20. Bb3 {[%clk 0:01:44]} 20... f5 {[%clk 0:01:28.5]} 21. Bb6
{[%clk 0:01:36.5]} 21... Rde8 {[%clk 0:01:22.7]} 22. Re1 {[%clk 0:01:28.4]}
22... Qxe1+ {[%clk 0:01:20.8]} 0-1

[Event "Late-Titled-Tuesday-Blitz-May-07-2024"]
[Site "Chess.com"]
[Date "2024.05.07"]
[Round "1"]
[White "Eloist"]
[Black "ArtemDyachuk"]
[Result "0-1"]
[WhiteElo "2389"]
[BlackElo "2698"]
[TimeControl "180+1"]
[EndTime "14:04:14 PDT"]
[Termination "ArtemDyachuk won by resignation"]

1. e4 {[%clk 0:02:59.2]} 1... c5 {[%clk 0:02:52.6]} 2. Nf3 {[%clk 0:02:59.3]}
2... Nc6 {[%clk 0:02:51.9]} 3. Bb5 {[%clk 0:02:59.2]} 3... d6 {[%clk 0:02:51.2]}
4. O-O {[%clk 0:02:58.6]} 4... Bd7 {[%clk 0:02:49.7]} 5. Re1 {[%clk 0:02:57.8]}
5... a6 {[%clk 0:02:44.9]} 6. Bxc6 {[%clk 0:02:57.6]} 6... Bxc6 {[%clk
0:02:44.3]} 7. d4 {[%clk 0:02:58]} 7... cxd4 {[%clk 0:02:43.8]} 8. Nxd4 {[%clk
0:02:58.9]} 8... Bd7 {[%clk 0:02:43.9]} 9. c4 {[%clk 0:02:53.4]} 9... g6 {[%clk
0:02:40.6]} 10. Nc3 {[%clk 0:02:52.4]} 10... Bg7 {[%clk 0:02:40.8]} 11. Be3
{[%clk 0:02:47.6]} 11... Nf6 {[%clk 0:02:40.7]} 12. f3 {[%clk 0:02:45.3]} 12...
O-O {[%clk 0:02:39.3]} 13. Qd2 {[%clk 0:02:45.5]} 13... Rc8 {[%clk 0:02:36]} 14.
b3 {[%clk 0:02:45.5]} 14... Re8 {[%clk 0:02:34.5]} 15. Bh6 {[%clk 0:02:36.4]}
15... Bh8 {[%clk 0:02:33.9]} 16. Rad1 {[%clk 0:02:30.2]} 16... b5 {[%clk
0:02:27.3]} 17. cxb5 {[%clk 0:02:29.2]} 17... axb5 {[%clk 0:02:28.2]} 18. Be3
{[%clk 0:02:06.5]} 18... b4 {[%clk 0:02:26.2]} 19. Nd5 {[%clk 0:02:06.3]} 19...
Nxd5 {[%clk 0:02:24.4]} 20. exd5 {[%clk 0:02:07.1]} 20... Qa5 {[%clk 0:02:24.4]}
21. Ne2 {[%clk 0:01:49.8]} 21... Ra8 {[%clk 0:02:02.5]} 22. Nc1 {[%clk
0:01:37.5]} 22... Bc3 {[%clk 0:02:00.3]} 23. Qf2 {[%clk 0:01:36]} 23... Bxe1
{[%clk 0:01:59]} 24. Qxe1 {[%clk 0:01:35.8]} 24... Rec8 {[%clk 0:01:58.9]} 25.
Bd4 {[%clk 0:01:21.2]} 25... Qxd5 {[%clk 0:01:50.5]} 26. Qxe7 {[%clk 0:01:17.4]}
26... Rxc1 {[%clk 0:01:50.6]} 27. Rxc1 {[%clk 0:01:14.2]} 27... Qxd4+ {[%clk
0:01:50]} 28. Kh1 {[%clk 0:01:14.4]} 28... Be6 {[%clk 0:01:47.8]} 0-1

[Event "Late-Titled-Tuesday-Blitz-May-07-2024"]
[Site "Chess.com"]
[Date "2024.05.07"]
[Round "1"]
[White "NikitaShnadrygin"]
[Black "Chessdude1987"]
[Result "0-1"]
[WhiteElo "2676"]
[BlackElo "2403"]
[TimeControl "180+1"]
[EndTime "14:04:16 PDT"]
[Termination "Chessdude1987 won on time"]

1. e4 {[%clk 0:02:59.9]} 1... e6 {[%clk 0:02:59.8]} 2. d4 {[%clk 0:02:59.8]}
2... d5 {[%clk 0:03:00.3]} 3. Nd2 {[%clk 0:03:00.4]} 3... c5 {[%clk 0:02:59]} 4.
exd5 {[%clk 0:03:00.2]} 4... Qxd5 {[%clk 0:02:59.9]} 5. Ngf3 {[%clk 0:03:00.6]}
5... cxd4 {[%clk 0:02:59.9]} 6. Bc4 {[%clk 0:03:01.2]} 6... Qd6 {[%clk
0:03:00.3]} 7. O-O {[%clk 0:03:01.8]} 7... Nf6 {[%clk 0:03:00.8]} 8. Nb3 {[%clk
0:03:02.3]} 8... Nc6 {[%clk 0:03:01.4]} 9. Nbxd4 {[%clk 0:03:02.8]} 9... Nxd4
{[%clk 0:03:02.3]} 10. Nxd4 {[%clk 0:03:03.6]} 10... Be7 {[%clk 0:03:02.8]} 11.
c3 {[%clk 0:03:00.2]} 11... O-O {[%clk 0:03:00.9]} 12. Qe2 {[%clk 0:02:59.8]}
12... a6 {[%clk 0:02:54.1]} 13. Rd1 {[%clk 0:02:58.3]} 13... Qc7 {[%clk
0:02:47.2]} 14. Bg5 {[%clk 0:02:57.7]} 14... b5 {[%clk 0:02:42.4]} 15. Bb3
{[%clk 0:02:57.7]} 15... Bb7 {[%clk 0:02:42.1]} 16. a4 {[%clk 0:02:52]} 16... b4
{[%clk 0:02:36.7]} 17. cxb4 {[%clk 0:02:51.4]} 17... Bxb4 {[%clk 0:02:32.5]} 0-1

[Event "Late-Titled-Tuesday-Blitz-May-07-2024"]
[Site "Chess.com"]
[Date "2024.05.07"]
[Round "1"]
[White "Vahe_Danielyan"]
[Black "remyrushbrooke"]
[Result "0-1"]
[WhiteElo "2614"]
[BlackElo "2300"]
[TimeControl "180+1"]
[EndTime "14:04:42 PDT"]
[Termination "remyrushbrooke won by checkmate"]

1. e4 {[%clk 0:03:00.9]} 1... g6 {[%clk 0:02:59.7]} 2. d4 {[%clk 0:03:00.7]}
2... Bg7 {[%clk 0:02:58.4]} 3. Nc3 {[%clk 0:03:01.1]} 3... d6 {[%clk 0:02:58.6]}
4. Be3 {[%clk 0:03:02]} 4... a6 {[%clk 0:02:58.4]} 5. h4 {[%clk 0:03:00.9]} 5...
h6 {[%clk 0:02:56.7]} 6. h5 {[%clk 0:03:01]} 6... g5 {[%clk 0:02:56.5]} 7. Nge2
{[%clk 0:03:01.5]} 7... b5 {[%clk 0:02:56]} 8. Ng3 {[%clk 0:03:01.9]} 8... e6
{[%clk 0:02:53.2]} 9. Bd3 {[%clk 0:02:58.3]} 9... Nd7 {[%clk 0:02:46.9]} 10. O-O
{[%clk 0:02:56]} 10... Bb7 {[%clk 0:02:45.5]} 11. f4 {[%clk 0:02:54.8]} 11...
gxf4 {[%clk 0:02:41.3]} 12. Rxf4 {[%clk 0:02:53.1]} 12... c5 {[%clk 0:01:46.5]}
13. Qg4 {[%clk 0:02:50.1]} 13... Qg5 {[%clk 0:01:32]} 14. dxc5 {[%clk
0:02:39.8]} 14... Nxc5 {[%clk 0:01:26.3]} 15. Qf3 {[%clk 0:02:29.9]} 15... Nxd3
{[%clk 0:01:15.1]} 16. cxd3 {[%clk 0:02:30.8]} 16... Qe7 {[%clk 0:01:08.1]} 17.
Rf1 {[%clk 0:02:30.1]} 17... f5 {[%clk 0:00:54.7]} 18. Qf2 {[%clk 0:02:23.2]}
18... Be5 {[%clk 0:00:53.4]} 19. Rf3 {[%clk 0:02:14.5]} 19... Nf6 {[%clk
0:00:52.6]} 20. d4 {[%clk 0:02:13.7]} 20... Ng4 {[%clk 0:00:52.5]} 21. Qe2
{[%clk 0:02:11.7]} 21... Qh4 {[%clk 0:00:47.5]} 22. Re1 {[%clk 0:01:52.5]} 22...
Bxg3 {[%clk 0:00:46.4]} 23. d5 {[%clk 0:01:38.8]} 23... Qh2+ {[%clk 0:00:44.5]}
24. Kf1 {[%clk 0:01:39]} 24... Qh1+ {[%clk 0:00:44.5]} 25. Bg1 {[%clk
0:01:39.2]} 25... Nh2# {[%clk 0:00:44.9]} 0-1